fUSD/lending_fUSD_20240104
["ID","MTS","AMOUNT","RATE_DAILY","PERIOD"]
[310208299,1704400308471,-500.0,0.00036712,2]
[310208300,1704400308480,-605.7,0.00036712,2]
[310208301,1704400308490,-500.0,0.00036712,2]
[310208302,1704400308498,-617.34,0.00036712,2]
[310208303,1704400308507,-1053.81,0.00036712,2]
[310208304,1704400308516,-500.0,0.00036712,2]
[310208305,1704400308525,-500.0,0.00036712,2]
[310208306,1704400308534,-500.0,0.00036712,2]
[310208307,1704400308545,-230.49275705,0.00036712,2]
[310208308,1704400308555,-637.91,0.00036712,2]
[310208309,1704400308564,-642.96,0.00036712,2]
[310208310,1704400308572,-500.0,0.00036712,2]
[310208311,1704400308582,-500.0,0.00036712,2]
[310208312,1704400308591,-500.0,0.00036712,2]
[310208313,1704400308600,-151.18,0.00036712,2]
[310208314,1704400308609,-500.0,0.00036712,2]
[310208315,1704400308618,-500.0,0.00036712,2]
[310208316,1704400308627,-500.0,0.00036712,2]
[310208317,1704400308636,-500.0,0.00036712,2]
[310208318,1704400308646,-500.0,0.00036712,2]
[310208319,1704400308655,-500.0,0.00036712,2]
[310208320,1704400308664,-539.44527654,0.00036712,2]
[310208321,1704400308673,-583.92,0.00036712,2]
[310208322,1704400308682,-500.0,0.00036712,2]
[310208323,1704400308692,-500.0,0.00036712,2]
[310208324,1704400308701,-644.12,0.00036712,2]
[310208325,1704400308710,-1262.62,0.00036712,2]
[310208326,1704400308719,-500.0,0.00036712,2]
[310208327,1704400308730,-500.0,0.00036712,2]
[310208328,1704400308739,-501.37,0.00036712,2]
[310208329,1704400308748,-500.0,0.00036712,2]
[310208330,1704400308757,-500.0,0.00036712,2]
[310208331,1704400308767,-511.59,0.00036712,2]
[310208332,1704400308776,-500.0,0.00036712,2]
[310208333,1704400308785,-500.0,0.00036712,2]
[310208334,1704400308795,-595.74491959,0.00036712,2]
[310208335,1704400308804,-359.66,0.00036712,2]
[310208336,1704400308813,-500.0,0.00036712,2]
[310208337,1704400308822,-500.0,0.00036712,2]
[310208338,1704400308832,-159.65,0.00036712,2]
[310208339,1704400308841,-500.0,0.00036712,2]
[310208340,1704400308850,-500.0,0.00036712,2]
[310208341,1704400308860,-984.97,0.00036712,2]
[310208342,1704400308870,-500.0,0.00036712,2]
[310208343,1704400308879,-500.0,0.00036712,2]
[310208344,1704400308889,-500.0,0.00036712,2]
[310208345,1704400308898,-500.0,0.00036712,2]
[310208346,1704400308907,-500.0,0.00036712,2]
[310208347,1704400308916,-2813.94,0.00036712,2]
[310208348,1704400308926,-500.0,0.00036712,2]
[310208349,1704400308936,-500.0,0.00036712,2]
[310208350,1704400308946,-1043.97,0.00036712,2]
[310208351,1704400308955,-815.95,0.00036712,2]
[310208352,1704400308965,-4226.54,0.00036712,2]
[310208353,1704400308974,-579.28,0.00036712,2]
[310208354,1704400308983,-574.90739113,0.00036712,2]
[310208355,1704400308993,-500.93,0.00036712,2]
[310208356,1704400309003,-1545.25,0.00036712,2]
[310208357,1704400309012,-896.7,0.00036712,2]
[310208358,1704400309022,-500.0,0.00036712,2]
[310208359,1704400309031,-1118.72,0.00036712,2]
[310208360,1704400309041,-766.02,0.00036712,2]
[310208361,1704400309050,-525.53,0.00036712,2]
[310208362,1704400309060,-1839.95,0.00036712,2]
[310208363,1704400309069,-1961.18,0.00036712,2]
[310208364,1704400309079,-666.57,0.00036712,2]
[310208365,1704400309088,-650.88,0.00036712,2]
[310208366,1704400309098,-1047.53,0.00036712,2]
[310208367,1704400309107,-2743.39,0.00036712,2]
[310208368,1704400309117,-6488.11,0.00036712,2]
[310208369,1704400309127,-1207.75,0.00036712,2]
[310208370,1704400309137,-802.32,0.00036712,2]
[310208371,1704400309147,-500.0,0.00036712,2]
[310208372,1704400309156,-2300.26,0.00036712,2]
[310208373,1704400309167,-564.62,0.00036712,2]
[310208374,1704400309179,-2212.73,0.00036712,2]
[310208375,1704400309190,-500.0,0.00036712,2]
[310208376,1704400309201,-8818.63,0.00036712,2]
[310208377,1704400309213,-554.47,0.00036712,2]
[310208378,1704400309225,-1988.3,0.00036712,2]
[310208379,1704400309236,-1033.94,0.00036712,2]
[310208380,1704400309251,-500.0,0.00036712,2]
[310208381,1704400309261,-8023.99,0.00036712,2]
[310208382,1704400309273,-2729.72,0.00036712,2]
[310208383,1704400309284,-1421.2,0.00036712,2]
[310208384,1704400309294,-2075.81,0.00036712,2]
[310208385,1704400309305,-500.0,0.00036712,2]
[310208386,1704400309314,-500.0,0.00036712,2]
[310208387,1704400309323,-1492.24,0.00036712,2]
[310208388,1704400309333,-2507.15,0.00036712,2]
[310208389,1704400309343,-500.0,0.00036712,2]
[310208390,1704400309353,-500.0,0.00036712,2]
[310208391,1704400309364,-5784.19,0.00036712,2]
[310208392,1704400309374,-1148.25,0.00036712,2]
[310208393,1704400309383,-512.73,0.00036712,2]
[310208394,1704400309393,-500.08,0.00036712,2]
[310208395,1704400309405,-714.23,0.00036712,2]
[310208396,1704400309414,-327.59699138,0.00036712,2]
[310208397,1704400309423,-164.70031065,0.00036712,2]
[310208398,1704400309432,-582.44,0.00036712,2]
[310208399,1704400309442,-500.0,0.00036712,2]
[310208400,1704400309451,-500.0,0.00036712,2]
[310208401,1704400309460,-565.27,0.00036712,2]
[310208402,1704400309469,-799.36,0.00036712,2]
[310208403,1704400309478,-500.0,0.00036712,2]
[310208404,1704400309488,-500.0,0.00036712,2]
[310208405,1704400309497,-1291.64,0.00036712,2]
[310208406,1704400309507,-1533.04,0.00036712,2]
[310208407,1704400309516,-654.95,0.00036712,2]
[310208408,1704400309525,-1046.38,0.00036712,2]
[310208409,1704400309534,-1168.15,0.00036712,2]
[310208410,1704400309544,-1279.36,0.00036712,2]
[310208411,1704400309553,-774.31,0.00036712,2]
[310208412,1704400309563,-1178.66,0.00036712,2]
[310208413,1704400309572,-2705.72,0.00036712,2]
[310208414,1704400309581,-540.01,0.00036712,2]
[310208415,1704400309590,-800.68,0.00036712,2]
[310208416,1704400309600,-1033.15,0.00036712,2]
[310208417,1704400309778,-683.02,0.00036712,2]
[310208418,1704400309787,-500.0,0.00036712,2]
[310208419,1704400309796,-664.5,0.00036712,2]
[310208420,1704400309805,-5429.5,0.00036712,2]
[310208421,1704400309815,-787.99,0.00036712,2]
[310208422,1704400309825,-500.0,0.00036712,2]
[310208423,1704400309835,-1185.9,0.00036712,2]
[310208424,1704400309845,-502.99,0.00036712,2]
[310208425,1704400309854,-803.67,0.00036712,2]
[310208426,1704400309867,-703.08,0.00036712,2]
[310208427,1704400309877,-931.91,0.00036712,2]
[310208428,1704400309887,-500.0,0.00036712,2]
[310208429,1704400309897,-3045.47,0.00036712,2]
[310208430,1704400309906,-500.0,0.00036712,2]
[310208431,1704400309916,-924.28,0.00036712,2]
[310208432,1704400309926,-612.45,0.00036712,2]
[310208433,1704400309935,-1719.17,0.00036712,2]
[310208434,1704400309945,-500.0,0.00036712,2]
[310208435,1704400309955,-1664.58,0.00036712,2]
[310208436,1704400309966,-650.67,0.00036712,2]
[310208437,1704400309976,-837.7,0.00036712,2]
[310208438,1704400309986,-651.85,0.00036712,2]
[310208439,1704400309996,-1763.88,0.00036712,2]
[310208440,1704400310005,-500.0,0.00036712,2]
[310208441,1704400310015,-5455.26,0.00036712,2]
[310208442,1704400310025,-595.32,0.00036712,2]
[310208443,1704400310035,-500.0,0.00036712,2]
[310208444,1704400310044,-864.85,0.00036712,2]
[310208445,1704400310054,-500.0,0.00036712,2]
[310208446,1704400310064,-500.0,0.00036712,2]
[310208447,1704400310073,-618.44,0.00036712,2]
[310208448,1704400310083,-1928.75,0.00036712,2]
[310208449,1704400310093,-500.0,0.00036712,2]
[310208450,1704400310102,-500.0,0.00036712,2]
[310208451,1704400310112,-575.7,0.00036712,2]
[310208452,1704400310122,-2873.21,0.00036712,2]
[310208453,1704400310132,-589.02,0.00036712,2]
[310208454,1704400310142,-500.0,0.00036712,2]
[310208455,1704400310152,-500.0,0.00036712,2]
[310208456,1704400310162,-501.82,0.00036712,2]
[310208457,1704400310171,-500.0,0.00036712,2]
[310208458,1704400310181,-500.0,0.00036712,2]
[310208459,1704400310190,-1565.07,0.00036712,2]
[310208460,1704400310199,-1472.89,0.00036712,2]
[310208461,1704400310209,-500.0,0.00036712,2]
[310208462,1704400310219,-902.0,0.00036712,2]
[310208463,1704400310229,-6496.65,0.00036712,2]
[310208464,1704400310239,-500.0,0.00036712,2]
[310208465,1704400310248,-864.86,0.00036712,2]
[310208466,1704400310258,-500.0,0.00036712,2]
[310208467,1704400310268,-500.0,0.00036712,2]
[310208468,1704400310277,-539.42,0.00036712,2]
[310208469,1704400310286,-659.36,0.00036712,2]
[310208470,1704400310296,-2834.51,0.00036712,2]
[310208471,1704400310306,-500.0,0.00036712,2]
[310208472,1704400310316,-535.67,0.00036712,2]
[310208473,1704400310325,-469.09,0.00036712,2]
[310208474,1704400310335,-772.31,0.00036712,2]
[310208475,1704400310346,-730.25,0.00036712,2]
[310208476,1704400310355,-500.0,0.00036712,2]
[310208477,1704400310365,-500.0,0.00036712,2]
[310208478,1704400310375,-1511.83,0.00036712,2]
[310208479,1704400310384,-597.99,0.00036712,2]
[310208480,1704400310394,-1373.46,0.00036712,2]
[310208481,1704400310407,-500.0,0.00036712,2]
[310208482,1704400310417,-500.0,0.00036712,2]
[310208483,1704400310427,-1411.58,0.00036712,2]
[310208484,1704400310436,-844.92,0.00036712,2]
[310208485,1704400310446,-1122.72,0.00036712,2]
[310208486,1704400310456,-500.0,0.00036712,2]
[310208487,1704400310465,-938.79,0.00036712,2]
[310208488,1704400310474,-700.27,0.00036712,2]
[310208489,1704400310483,-210.86,0.00036712,2]
[310208490,1704400310493,-2603.65,0.00036712,2]
[310208491,1704400310503,-500.0,0.00036712,2]
[310208492,1704400310513,-500.0,0.00036712,2]
[310208493,1704400310523,-690.56,0.00036712,2]
[310208494,1704400310533,-500.0,0.00036712,2]
[310208495,1704400310543,-1114.57,0.00036712,2]
[310208496,1704400310553,-500.0,0.00036712,2]
[310208497,1704400310563,-1863.03,0.00036712,2]
[310208498,1704400310572,-625.26,0.00036712,2]
[310208499,1704400310582,-1822.1,0.00036712,2]
[310208500,1704400310591,-524.64,0.00036712,2]
[310208501,1704400310601,-715.91,0.00036712,2]
[310208502,1704400310611,-1359.04,0.00036712,2]
[310208503,1704400310620,-1000.0,0.00036723,10]
[310208504,1704400310630,-325.61963289,0.00036724,14]
[310208505,1704400310640,-325.61963289,0.00036743,14]
[310208506,1704400310649,-50000.0,0.00036782,15]
[310208507,1704400310659,-500.0,0.000368,4]
[310208508,1704400310668,-3000.0,0.000368,5]
[310208509,1704400310678,-16208.0,0.00036803,20]
[310208510,1704400310687,-151.76501899,0.00036805,14]
[310208511,1704400310697,-220.71423699,0.00036823,14]
[310208512,1704400310706,-174.00751121,0.00036832,14]
[310208513,1704400310716,-151.3449159,0.00036836,14]
[310208514,1704400310726,-220.71423699,0.00036842,14]
[310208515,1704400310735,-7788.20558077,0.00036851,2]
[310208516,1704400310744,-500.0,0.00036862,7]
[310208517,1704400310754,-500.0,0.00036862,7]
[310208518,1704400310763,-6463.65125772,0.00036862,2]
[310208519,1704400310773,-5000.0,0.00036862,2]
[310208520,1704400310782,-5000.0,0.00036862,2]
[310208521,1704400310792,-5000.0,0.00036862,2]
[310208522,1704400310802,-5000.0,0.00036862,2]
[310208523,1704400310811,-151.76501899,0.00036865,14]
[310208524,1704400310820,-1000.0,0.00036874,15]
[310208525,1704400310830,-1000.0,0.000369,4]
[310208526,1704400310839,-1680.35928034,0.000369,7]
[310208527,1704400310849,-58643.25750197,0.000369,5]
[310208528,1704400310859,-150.0,0.000369,26]
[310208529,1704400310870,-607.43039192,0.000369,10]
[310208530,1704400310881,-607.43039192,0.000369,10]
[310208531,1704400310892,-607.43039192,0.000369,10]
[310208532,1704400310901,-607.43039192,0.000369,10]
[310208533,1704400310912,-607.43039192,0.000369,10]
[310208534,1704400310922,-607.43039192,0.000369,10]
[310208535,1704400310931,-607.43039192,0.000369,10]
[310208536,1704400310941,-607.43039192,0.000369,10]
[310208537,1704400310951,-607.43039192,0.000369,10]
[310208538,1704400310960,-607.43039192,0.000369,10]
[310208539,1704400310971,-607.43039192,0.000369,10]
[310208540,1704400310981,-607.43039192,0.000369,10]
[310208541,1704400310991,-607.43039192,0.000369,10]
[310208542,1704400311001,-607.43039192,0.000369,10]
[310208543,1704400311011,-607.43039192,0.000369,10]
[310208544,1704400311021,-607.43039192,0.000369,10]
[310208545,1704400311031,-607.43039192,0.000369,10]
[310208546,1704400311041,-607.43039192,0.000369,10]
[310208547,1704400311051,-607.43039192,0.000369,10]
[310208548,1704400311062,-607.43,0.000369,10]
[310208549,1704400311071,-179.47525135,0.000369,10]
[310208550,1704400311081,-179.47525135,0.000369,10]
[310208551,1704400311091,-179.47525135,0.000369,10]
[310208552,1704400311101,-179.47525135,0.000369,10]
[310208553,1704400311112,-179.47525135,0.000369,10]
[310208554,1704400311122,-179.47525135,0.000369,10]
[310208555,1704400311133,-179.47525135,0.000369,10]
[310208556,1704400311145,-179.47525135,0.000369,10]
[310208557,1704400311156,-179.47525135,0.000369,10]
[310208558,1704400311166,-179.47525135,0.000369,10]
[310208559,1704400311176,-179.47525135,0.000369,10]
[310208560,1704400311187,-179.47525135,0.000369,10]
[310208561,1704400311198,-179.47525135,0.000369,10]
[310208562,1704400311208,-179.47525135,0.000369,10]
[310208563,1704400311219,-179.47525135,0.000369,10]
[310208564,1704400311230,-179.47525135,0.000369,10]
[310208565,1704400311240,-179.47525135,0.000369,10]
[310208566,1704400311251,-179.47525135,0.000369,10]
[310208567,1704400311261,-179.47525135,0.000369,10]
[310208568,1704400311272,-179.47,0.000369,10]
[310208569,1704400311283,-582.57594897,0.000369,10]
[310208570,1704400311293,-582.57594897,0.000369,10]
[310208571,1704400311304,-582.57594897,0.000369,10]
[310208572,1704400311314,-582.57594897,0.000369,10]
[310208573,1704400311325,-582.57594897,0.000369,10]
[310208574,1704400311334,-582.57594897,0.000369,10]
[310208575,1704400311344,-582.57594897,0.000369,10]
[310208576,1704400311353,-582.57594897,0.000369,10]
[310208577,1704400311361,-582.57594897,0.000369,10]
[310208578,1704400311371,-582.57594897,0.000369,10]
[310208579,1704400311380,-582.57594897,0.000369,10]
[310208580,1704400311389,-582.57594897,0.000369,10]
[310208581,1704400311399,-582.57594897,0.000369,10]
[310208582,1704400311410,-582.57594897,0.000369,10]
[310208583,1704400311420,-582.57594897,0.000369,10]
[310208584,1704400311429,-582.57594897,0.000369,10]
[310208585,1704400311438,-582.57594897,0.000369,10]
[310208586,1704400311448,-582.57594897,0.000369,10]
[310208587,1704400311456,-582.57594897,0.000369,10]
[310208588,1704400311466,-582.57,0.000369,10]
[310208589,1704400311477,-1028.6817391,0.000369,10]
[310208590,1704400311488,-1028.6817391,0.000369,10]
[310208591,1704400311498,-1028.6817391,0.000369,10]
[310208592,1704400311508,-1028.6817391,0.000369,10]
[310208593,1704400311519,-1028.6817391,0.000369,10]
[310208594,1704400311529,-1028.6817391,0.000369,10]
[310208595,1704400311538,-1028.6817391,0.000369,10]
[310208596,1704400311548,-1028.6817391,0.000369,10]
[310208597,1704400311559,-1028.6817391,0.000369,10]
[310208598,1704400311569,-1028.6817391,0.000369,10]
[310208599,1704400311581,-1028.6817391,0.000369,10]
[310208600,1704400311592,-1028.6817391,0.000369,10]
[310208601,1704400311602,-1028.6817391,0.000369,10]
[310208602,1704400311612,-1028.6817391,0.000369,10]
[310208603,1704400311622,-1028.6817391,0.000369,10]
[310208604,1704400311632,-1028.6817391,0.000369,10]
[310208605,1704400311643,-1028.6817391,0.000369,10]
[310208606,1704400311653,-1028.6817391,0.000369,10]
[310208607,1704400311664,-1028.6817391,0.000369,10]
[310208608,1704400311674,-1028.68,0.000369,10]
[310208609,1704400311685,-902.33987137,0.000369,10]
[310208610,1704400311696,-902.33987137,0.000369,10]
[310208611,1704400311706,-902.33987137,0.000369,10]
[310208612,1704400311717,-902.33987137,0.000369,10]
[310208613,1704400311728,-902.33987137,0.000369,10]
[310208614,1704400311739,-902.33987137,0.000369,10]
[310208615,1704400311750,-902.33987137,0.000369,10]
[310208616,1704400311762,-902.33987137,0.000369,10]
[310208617,1704400311772,-902.33987137,0.000369,10]
[310208618,1704400311783,-902.33987137,0.000369,10]
[310208619,1704400311794,-902.33987137,0.000369,10]
[310208620,1704400311804,-902.33987137,0.000369,10]
[310208621,1704400311815,-902.33987137,0.000369,10]
[310208622,1704400311825,-902.33987137,0.000369,10]
[310208623,1704400311837,-902.33987137,0.000369,10]
[310208624,1704400311848,-902.33987137,0.000369,10]
[310208625,1704400311858,-902.33987137,0.000369,10]
[310208626,1704400311868,-902.33987137,0.000369,10]
[310208627,1704400311879,-902.33987137,0.000369,10]
[310208628,1704400311889,-902.33,0.000369,10]
[310208629,1704400311899,-1474.70996629,0.000369,9]
[310208630,1704400311909,-412.93661815,0.000369,8]
[310208631,1704400311918,-238.08508667,0.000369,2]
[310208632,1704400311929,-882.26492804,0.000369,2]
[310208633,1704400311940,-211.23017241,0.000369,2]
[310208634,1704400311951,-208.22344079,0.000369,2]
[310208635,1704400311963,-828.8315522,0.000369,2]
[310208636,1704400311973,-325.61963289,0.00036934,14]
[310208637,1704400311986,-174.00751121,0.00036975,14]
[310208638,1704400311996,-500.0,0.00036986,2]
[310208639,1704400312006,-500.0,0.00036986,2]
[310208640,1704400312015,-1000.0,0.00036986,4]
[310208641,1704400312024,-1000.0,0.00036986,4]
[310208642,1704400312034,-1000.0,0.00036986,4]
[310208643,1704400312043,-1000.0,0.00036986,4]
[310208644,1704400312054,-1000.0,0.00036986,4]
[310208645,1704400312063,-1000.0,0.00036986,4]
[310208646,1704400312073,-1000.0,0.00036986,4]
[310208647,1704400312082,-1000.0,0.00036986,4]
[310208648,1704400312091,-1000.0,0.00036986,4]
[310208649,1704400312101,-1000.0,0.00036986,4]
[310208650,1704400312111,-1000.0,0.00036986,4]
[310208651,1704400312121,-1000.0,0.00036986,4]
[310208652,1704400312131,-1000.0,0.00036986,4]
[310208653,1704400312140,-1000.0,0.00036986,4]
[310208654,1704400312149,-878.24249505,0.00036986,4]
[310208655,1704400312158,-809.33,0.00036986,2]
[310208656,1704400312168,-500.0,0.00036986,2]
[310208657,1704400312177,-191.51218489,0.00036986,2]
[310208658,1704400312187,-313.03403978,0.00036986,2]
[310208659,1704400312196,-500.0,0.00036986,2]
[310208660,1704400312205,-570.2,0.00036986,2]
[310208661,1704400312278,-500.0,0.00036986,2]
[310208662,1704400312288,-500.0,0.00036986,2]
[310208663,1704400312298,-500.0,0.00036986,2]
[310208664,1704400312307,-500.0,0.00036986,2]
[310208665,1704400312318,-500.0,0.00036986,2]
[310208666,1704400312328,-511.41,0.00036986,2]
[310208667,1704400312337,-500.0,0.00036986,2]
[310208668,1704400312346,-500.0,0.00036986,2]
[310208669,1704400312355,-826.26,0.00036986,2]
[310208670,1704400312365,-500.0,0.00036986,2]
[310208671,1704400312374,-1785.82,0.00036986,2]
[310208672,1704400312383,-541.66,0.00036986,2]
[310208673,1704400312393,-702.0,0.00036986,2]
[310208674,1704400312405,-713.92,0.00036986,2]
[310208675,1704400312415,-508.08,0.00036986,2]
[310208676,1704400312424,-500.0,0.00036986,2]
[310208677,1704400312434,-500.0,0.00036986,2]
[310208678,1704400312444,-605.7,0.00036986,2]
[310208679,1704400312453,-500.0,0.00036986,2]
[310208680,1704400312463,-617.34,0.00036986,2]
[310208681,1704400312472,-1053.81,0.00036986,2]
[310208682,1704400312482,-500.0,0.00036986,2]
[310208683,1704400312492,-500.0,0.00036986,2]
[310208684,1704400312502,-500.0,0.00036986,2]
[310208685,1704400312512,-637.91,0.00036986,2]
[310208686,1704400312521,-642.96,0.00036986,2]
[310208687,1704400312531,-500.0,0.00036986,2]
[310208688,1704400312541,-500.0,0.00036986,2]
[310208689,1704400312550,-500.0,0.00036986,2]
[310208690,1704400312560,-500.0,0.00036986,2]
[310208691,1704400312569,-500.0,0.00036986,2]
[310208692,1704400312579,-500.0,0.00036986,2]
[310208693,1704400312588,-500.0,0.00036986,2]
[310208694,1704400312598,-500.0,0.00036986,2]
[310208695,1704400312607,-500.0,0.00036986,2]
[310208696,1704400312617,-583.92,0.00036986,2]
[310208697,1704400312627,-500.0,0.00036986,2]
[310208698,1704400312636,-500.0,0.00036986,2]
[310208699,1704400312646,-644.12,0.00036986,2]
[310208700,1704400312656,-1262.62,0.00036986,2]
[310208701,1704400312665,-421.32029955,0.00036986,2]
[310208702,1704400312675,-500.0,0.00036986,2]
[310208703,1704400312685,-501.37,0.00036986,2]
[310208704,1704400312695,-500.0,0.00036986,2]
[310208705,1704400312705,-500.0,0.00036986,2]
[310208706,1704400312715,-511.59,0.00036986,2]
[310208707,1704400312726,-500.0,0.00036986,2]
[310208708,1704400312735,-500.0,0.00036986,2]
[310208709,1704400312745,-500.0,0.00036986,2]
[310208710,1704400312754,-500.0,0.00036986,2]
[310208711,1704400312764,-159.65,0.00036986,2]
[310208712,1704400312774,-500.0,0.00036986,2]
[310208713,1704400312784,-500.0,0.00036986,2]
[310208714,1704400312795,-984.97,0.00036986,2]
[310208715,1704400312806,-500.0,0.00036986,2]
[310208716,1704400312816,-500.0,0.00036986,2]
[310208717,1704400312826,-500.0,0.00036986,2]
[310208718,1704400312836,-500.0,0.00036986,2]
[310208719,1704400312847,-2813.94,0.00036986,2]
[310208720,1704400312857,-500.0,0.00036986,2]
[310208721,1704400312868,-500.0,0.00036986,2]
[310208722,1704400312878,-815.95,0.00036986,2]
[310208723,1704400312888,-1043.97,0.00036986,2]
[310208724,1704400312898,-4226.54,0.00036986,2]
[310208725,1704400312908,-579.28,0.00036986,2]
[310208726,1704400312918,-500.93,0.00036986,2]
[310208727,1704400312927,-1545.25,0.00036986,2]
[310208728,1704400312937,-896.7,0.00036986,2]
[310208729,1704400312947,-171.65,0.00036986,2]
[310208730,1704400312957,-1118.72,0.00036986,2]
[310208731,1704400312968,-766.02,0.00036986,2]
[310208732,1704400312979,-525.53,0.00036986,2]
[310208733,1704400312990,-1839.95,0.00036986,2]
[310208734,1704400313000,-1961.18,0.00036986,2]
[310208735,1704400313010,-666.57,0.00036986,2]
[310208736,1704400313019,-650.88,0.00036986,2]
[310208737,1704400313029,-1047.53,0.00036986,2]
[310208738,1704400313038,-2743.39,0.00036986,2]
[310208739,1704400313048,-6488.11,0.00036986,2]
[310208740,1704400313057,-1207.75,0.00036986,2]
[310208741,1704400313067,-802.32,0.00036986,2]
[310208742,1704400313076,-500.0,0.00036986,2]
[310208743,1704400313085,-2300.26,0.00036986,2]
[310208744,1704400313095,-564.62,0.00036986,2]
[310208745,1704400313106,-2212.73,0.00036986,2]
[310208746,1704400313116,-500.0,0.00036986,2]
[310208747,1704400313126,-8818.63,0.00036986,2]
[310208748,1704400313137,-554.47,0.00036986,2]
[310208749,1704400313147,-1988.3,0.00036986,2]
[310208750,1704400313157,-500.0,0.00036986,2]
[310208751,1704400313166,-1033.94,0.00036986,2]
[310208752,1704400313176,-8023.99,0.00036986,2]
[310208753,1704400313186,-2729.72,0.00036986,2]
[310208754,1704400313195,-1421.2,0.00036986,2]
[310208755,1704400313206,-2075.81,0.00036986,2]
[310208756,1704400313215,-500.0,0.00036986,2]
[310208757,1704400313225,-500.0,0.00036986,2]
[310208758,1704400313237,-1492.24,0.00036986,2]
[310208759,1704400313247,-2507.15,0.00036986,2]
[310208760,1704400313256,-500.0,0.00036986,2]
[310208761,1704400313266,-500.0,0.00036986,2]
[310208762,1704400313275,-5784.19,0.00036986,2]
[310208763,1704400313285,-1148.25,0.00036986,2]
[310208764,1704400313295,-512.73,0.00036986,2]
[310208765,1704400313304,-500.08,0.00036986,2]
[310208766,1704400313314,-714.23,0.00036986,2]
[310208767,1704400313324,-582.44,0.00036986,2]
[310208768,1704400313333,-500.0,0.00036986,2]
[310208769,1704400313342,-500.0,0.00036986,2]
[310208770,1704400313351,-565.27,0.00036986,2]
[310208771,1704400313360,-799.36,0.00036986,2]
[310208772,1704400313370,-500.0,0.00036986,2]
[310208773,1704400313379,-500.0,0.00036986,2]
[310208774,1704400313390,-1291.64,0.00036986,2]
[310208775,1704400313401,-1533.04,0.00036986,2]
[310208776,1704400313411,-654.95,0.00036986,2]
[310208777,1704400313421,-1046.38,0.00036986,2]
[310208778,1704400313432,-1168.15,0.00036986,2]
[310208779,1704400313441,-1279.36,0.00036986,2]
[310208780,1704400313450,-774.31,0.00036986,2]
[310208781,1704400313461,-1178.66,0.00036986,2]
[310208782,1704400313471,-2705.72,0.00036986,2]
[310208783,1704400313481,-540.01,0.00036986,2]
[310208784,1704400313490,-800.68,0.00036986,2]
[310208785,1704400313499,-1033.15,0.00036986,2]
[310208786,1704400313509,-683.02,0.00036986,2]
[310208787,1704400313518,-500.0,0.00036986,2]
[310208788,1704400313527,-664.5,0.00036986,2]
[310208789,1704400313537,-5429.5,0.00036986,2]
[310208790,1704400313546,-787.99,0.00036986,2]
[310208791,1704400313556,-500.0,0.00036986,2]
[310208792,1704400313566,-1185.9,0.00036986,2]
[310208793,1704400313576,-502.99,0.00036986,2]
[310208794,1704400313586,-803.67,0.00036986,2]
[310208795,1704400313595,-703.08,0.00036986,2]
[310208796,1704400313604,-931.91,0.00036986,2]
[310208797,1704400313614,-500.0,0.00036986,2]
[310208798,1704400313624,-3045.47,0.00036986,2]